fUST/lending_fUST_20260113
["ID","MTS","AMOUNT","RATE_DAILY","PERIOD"]
[401596217,1768312245906,-2683.0174,0.00015834,2]
[401596219,1768312245917,-2054.92963174,0.00015834,2]
[401598961,1768312373378,249.86409292,0.00030136,120]
[401598962,1768312382951,500.0,0.00030136,120]
[401598963,1768312383063,500.0,0.00030136,120]
[401598964,1768312383180,500.0,0.00030136,120]
[401598965,1768312383342,500.0,0.00030136,120]
[401598966,1768312383426,500.0,0.00030136,120]
[401598967,1768312383610,500.0,0.00030136,120]
[401598968,1768312383665,500.0,0.00030136,120]
[401598969,1768312383850,500.0,0.00030136,120]
[401598970,1768312383908,500.0,0.00030136,120]
[401598971,1768312384095,613.88,0.00030136,120]
[401598972,1768312384233,500.0,0.00030136,120]
[401598973,1768312384491,500.0,0.00030136,120]
[401598974,1768312384730,500.0,0.00030136,120]
[401598975,1768312384964,500.0,0.00030136,120]
[401598976,1768312385225,500.0,0.00030136,120]
[401598977,1768312385499,500.0,0.00030136,120]
[401598978,1768312385761,500.0,0.00030136,120]
[401598979,1768312385968,500.0,0.00030136,120]
[401598980,1768312386247,500.0,0.00030136,120]
[401598981,1768312386496,500.0,0.00030136,120]
[401598982,1768312386722,500.0,0.00030136,120]
[401598983,1768312386957,500.0,0.00030136,120]
[401598984,1768312387293,500.0,0.00030136,120]
[401598985,1768312387538,241.51,0.00030136,120]
[401598986,1768312396685,500.0,0.00030136,120]
[401598987,1768312396930,242.4292679,0.00030136,120]
[401598988,1768312404750,500.0,0.00030136,120]
[401598989,1768312405745,508.51285723,0.00030136,120]
[401598990,1768312407690,296.6794657,0.00030136,120]
[401598991,1768312414047,500.0,0.00030136,120]
[401598992,1768312428702,500.0,0.00030136,120]
[401598993,1768312449271,500.0,0.00030136,120]
[401598994,1768312461385,626.82,0.00030136,120]
[401598995,1768312465965,500.0,0.00030136,120]
[401598996,1768312474522,500.0,0.00030136,120]
[401598997,1768312474778,500.0,0.00030136,120]
[401598998,1768312475031,500.0,0.00030136,120]
[401598999,1768312475268,176.06,0.00030136,120]
[401599000,1768312491115,500.0,0.00030136,120]
[401599002,1768312533202,500.0,0.00030136,120]
[401599003,1768312533433,168.97780957,0.00030136,120]
[401599004,1768312552194,500.0,0.00030136,120]
[401599005,1768312552498,500.0,0.00030136,120]
[401599006,1768312552647,500.0,0.00030136,120]
[401599007,1768312552899,500.0,0.00030136,120]
[401599008,1768312553124,500.0,0.00030136,120]
[401599009,1768312553376,500.0,0.00030136,120]
[401599010,1768312553616,500.0,0.00030136,120]
[401599011,1768312553850,500.0,0.00030136,120]
[401599012,1768312554094,384.95281298,0.00030136,120]
[401599013,1768312595912,460.49338291,0.00030136,120]
[401599020,1768312620222,568.06374325,0.00030136,120]
[401599021,1768312623026,385.80543635,0.00030136,120]
[401599022,1768312649071,532.68,0.00030136,120]
[401599023,1768312663007,506.94574255,0.00030136,120]
[401599025,1768312807751,500.0,0.00030136,120]
[401599028,1768312877720,500.0,0.00030136,120]
[401599029,1768312877951,464.29578655,0.00030136,120]
[401599030,1768312881084,500.0,0.00030136,120]
[401599031,1768312881326,500.0,0.00030136,120]
[401599032,1768312881564,500.0,0.00030136,120]
[401599033,1768312881791,500.0,0.00030136,120]
[401599034,1768312882069,640.33624816,0.00030136,120]
[401599035,1768312923526,1000.0,0.000157,2]
[401599037,1768312990009,5805.914781,0.0001502,2]
[401599038,1768313066426,500.0,0.00030136,120]
[401599039,1768313066680,273.44216672,0.00030136,120]
[401599041,1768313135882,504.52020672,0.00030136,120]
[401599042,1768313237822,-300.0,0.00015732,2]
[401599043,1768313237851,-500.0,0.00015733,2]
[401599044,1768313237880,-198.5551347,0.00015733,2]
[401599045,1768313237910,-500.0,0.00015733,2]
[401599046,1768313237941,-444.55020542,0.00015733,2]
[401599047,1768313237972,-500.0,0.00015733,2]
[401599048,1768313238003,-500.0,0.00015733,2]
[401599049,1768313238033,-500.0,0.00015733,2]
[401599050,1768313238064,-500.0,0.00015733,2]
[401599051,1768313238094,-500.0,0.00015733,2]
[401599052,1768313238124,-211.01124828,0.00015733,2]
[401599053,1768313238155,-193.83047451,0.00015733,2]
[401599054,1768313238186,-36.68512745,0.00015733,2]
[401599055,1768313238462,-230.74561928,0.00015733,2]
[401599056,1768313238493,-300.0,0.00015733,2]
[401599057,1768313238530,2682.42147878,0.000157,2]
[401599058,1768313238953,-4146.9003113,0.00015734,2]
[401599059,1768313238969,-10000.01,0.00015734,2]
[401599060,1768313238996,-10000.01,0.00015734,2]
[401599061,1768313239011,-10000.01,0.00015734,2]
[401599062,1768313239044,-10000.01,0.00015734,2]
[401599063,1768313239068,-10000.01,0.00015734,2]
[401599064,1768313239083,-10000.01,0.00015734,2]
[401599065,1768313239177,-10000.01,0.00015734,2]
[401599066,1768313239600,-10000.01,0.00015734,2]
[401599067,1768313239735,-10000.01,0.00015734,2]
[401599068,1768313243748,-10000.01,0.00015734,2]
[401599069,1768313249731,-10000.01,0.00015734,2]
[401599070,1768313249838,-10000.01,0.00015734,2]
[401599071,1768313249983,-10000.01,0.00015734,2]
[401599072,1768313250091,-10000.01,0.00015734,2]
[401599073,1768313250292,-10000.01,0.00015734,2]
[401599074,1768313250565,-10000.01,0.00015734,2]
[401599075,1768313250703,-10000.01,0.00015734,2]
[401599076,1768313250824,-10000.01,0.00015734,2]
[401599077,1768313250964,-10000.01,0.00015734,2]
[401599078,1768313251091,-10000.01,0.00015734,2]
[401599079,1768313251219,-10000.01,0.00015734,2]
[401599080,1768313282044,-10000.01,0.00015734,2]
[401599081,1768313282288,-10000.01,0.00015734,2]
[401599082,1768313282391,-10000.01,0.00015734,2]
[401599083,1768313282527,-300.0,0.00015733,2]
[401599084,1768313282564,-9400.01,0.00015734,2]
[401599085,1768313282649,-10000.01,0.00015734,2]
[401599086,1768313282794,-10000.01,0.00015734,2]
[401599087,1768313285647,-534.89145025,9.99e-05,2]
[401599088,1768313288216,-13.76854975,9.99e-05,2]
[401599089,1768313288238,-229.27008204,9.99e-05,2]
[401599090,1768313290972,-319.38991796,9.99e-05,2]
[401599091,1768313291010,-9361.23016408,0.00015734,2]
[401599092,1768313291111,-10000.01,0.00015734,2]
[401599093,1768313291245,-10000.01,0.00015734,2]
[401599094,1768313294304,500.0,0.00030136,120]
[401599095,1768313294551,500.0,0.00030136,120]
[401599096,1768313294807,500.0,0.00030136,120]
[401599097,1768313295067,500.0,0.00030136,120]
[401599098,1768313295357,500.0,0.00030136,120]
[401599099,1768313295565,500.0,0.00030136,120]
[401599100,1768313295837,181.63041347,0.00030136,120]
[401599101,1768313300988,356.37,7.116e-05,2]
[401599102,1768313301465,712.74,7.455e-05,2]
[401599103,1768313301848,1069.12,7.794e-05,2]
[401599104,1768313302242,1425.49,8.133e-05,2]
[401599105,1768313302643,1781.86,8.472e-05,2]
[401599106,1768313303044,2138.23,8.811e-05,2]
[401599107,1768313303087,-208.26,0.00015724,3]
[401599108,1768313303116,-243.04,0.00015724,3]
[401599109,1768313303165,-9097.41,0.00015734,2]
[401599110,1768313303194,-10000.01,0.00015734,2]
[401599111,1768313303310,-10000.01,0.00015734,2]
[401599112,1768313303440,2494.61,9.15e-05,2]
[401599113,1768313303482,-10000.01,0.00015734,2]
[401599114,1768313303782,-10000.01,0.00015734,2]
[401599115,1768313303881,2850.98,9.489e-05,2]
[401599116,1768313303910,-10000.01,0.00015734,2]
[401599117,1768313304031,-10000.01,0.00015734,2]
[401599118,1768313304205,-10000.01,0.00015734,2]
[401599119,1768313304327,-3207.35,9.828e-05,2]
[401599120,1768313304364,-3585.31,0.00015734,2]
[401599121,1768313307109,-500.0,0.00010166,2]
[401599122,1768313307853,500.0,0.00030136,120]
[401599123,1768313310499,-196.9355846,0.00010166,2]
[401599124,1768313312131,-2866.7844154,0.00010166,2]
[401599125,1768313312170,-4266.4411692,0.00015734,2]
[401599126,1768313318181,-207.61409938,0.000157,2]
[401599127,1768313318211,-231.15,0.00015724,3]
[401599128,1768313318240,-500.0,0.00015733,2]
[401599129,1768313318271,-500.0,0.00015733,2]
[401599130,1768313318299,-500.0,0.00015733,2]
[401599131,1768313318329,-300.0,0.00015733,2]
[401599132,1768313318437,-5522.48180124,0.00015734,2]
[401599135,1768313378420,213.82,6.075e-05,2]
[401599136,1768313378829,320.74,6.351e-05,2]
[401599137,1768313379309,427.65,6.627e-05,2]
[401599138,1768313379810,534.56,6.903e-05,2]
[401599139,1768313380204,641.47,7.179e-05,2]
[401599140,1768313380616,748.38,7.455e-05,2]
[401599141,1768313381166,855.29,7.732e-05,2]
[401599142,1768313381657,962.21,8.008e-05,2]
[401599143,1768313382069,1069.12,8.284e-05,2]
[401599144,1768313403926,234.34,5e-05,2]
[401599145,1768313404303,234.34,5.1e-05,2]
[401599146,1768313404685,234.34,5.2e-05,2]
[401599147,1768313405051,234.34,5.4e-05,2]
[401599148,1768313405421,234.34,5.5e-05,2]
[401599149,1768313405794,234.34,5.6e-05,2]
[401599150,1768313406187,234.34,5.7e-05,2]
[401599151,1768313406567,234.34,5.9e-05,2]
[401599152,1768313407107,234.34,6e-05,2]
[401599153,1768313407444,234.34,6.1e-05,2]
[401599154,1768313407858,234.34,6.2e-05,2]
[401599155,1768313408219,234.34,6.3e-05,2]
[401599156,1768313408592,234.34,6.5e-05,2]
[401599157,1768313408981,234.34,6.6e-05,2]
[401599158,1768313409363,234.34,6.7e-05,2]
[401599159,1768313409737,234.34,6.8e-05,2]
[401599160,1768313410109,234.34,7e-05,2]
[401599161,1768313410471,234.34,7.1e-05,2]
[401599162,1768313410875,234.34,7.2e-05,2]
[401599163,1768313411368,234.34,7.3e-05,2]
[401599164,1768313411652,234.34,7.4e-05,2]
[401599165,1768313412138,234.34,7.6e-05,2]
[401599166,1768313412572,234.34,7.7e-05,2]
[401599167,1768313412990,234.34,7.8e-05,2]
[401599168,1768313413396,234.34,7.9e-05,2]
[401599169,1768313413783,234.34,8.1e-05,2]
[401599170,1768313414166,234.34,8.2e-05,2]
[401599171,1768313414608,234.34,8.3e-05,2]
[401599172,1768313414979,234.34,8.4e-05,2]
[401599174,1768313415409,234.34,8.6e-05,2]
[401599175,1768313415779,234.34,8.7e-05,2]
[401599176,1768313416155,234.34,8.8e-05,2]
[401599177,1768313416539,234.34,8.9e-05,2]
[401599178,1768313416900,234.34,9e-05,2]
[401599179,1768313417437,234.34,9.2e-05,2]
[401599180,1768313417877,234.34,9.3e-05,2]
[401599181,1768313418367,234.34,9.4e-05,2]
[401599182,1768313418804,234.34,9.5e-05,2]
[401599183,1768313427888,-234.34,9.7e-05,2]
[401599184,1768313427913,-10.8623864,9.8e-05,2]
[401599185,1768313429884,-223.4776136,9.8e-05,2]
[401599186,1768313429908,-56.96057609,9.9e-05,2]
[401599209,1768313431613,-177.37942391,9.9e-05,2]
[401599210,1768313431623,-234.34,0.0001,2]
[401599211,1768313431632,-234.34,0.000101,2]
[401599212,1768313431642,-234.34,0.000103,2]
[401599213,1768313431652,-234.34,0.000104,2]
[401599214,1768313431663,-234.34,0.000105,2]
[401599215,1768313431673,-234.34,0.000106,2]
[401599216,1768313431683,-234.34,0.000108,2]
[401599217,1768313431693,-234.34,0.000109,2]
[401599218,1768313431704,-196.9355846,0.00013273,2]
[401599219,1768313431714,-548.235786,0.00013273,2]
[401599220,1768313431723,-608.0,0.00013273,2]
[401599221,1768313431732,-2968.98524404,0.00015596,2]
[401599222,1768313431744,-300.0,0.00015723,2]
[401599223,1768313431753,-300.0,0.00015723,2]
[401599224,1768313431763,-300.0,0.00015723,2]
[401599225,1768313431772,-1200.0,0.00015723,2]
[401599226,1768313431781,-1074.82,0.00015724,3]
[401599227,1768313431791,-537.41,0.00015724,3]
[401599228,1768313431800,-268.71,0.00015724,3]
[401599229,1768313431809,-806.14,0.00015724,3]
[401599230,1768313431818,-300.0,0.00015732,2]
[401599231,1768313431827,-2123.93049225,0.00015733,2]
[401599232,1768313431919,-268.57565779,0.00015733,2]
[401599233,1768313431930,-1549.05,0.00015733,2]
[401599240,1768313437811,-15869.43451462,0.00015733,2]
[401599730,1768313444698,-26999.28639019,0.00015733,2]
[401599731,1768313444711,-3189.72294515,0.00015733,2]
[401599732,1768313444720,-500.0,0.00015733,2]
[401599733,1768313444730,-500.0,0.00015733,2]
[401599735,1768313444739,-500.0,0.00015733,2]
[401599737,1768313444748,-500.0,0.00015733,2]
[401599739,1768313444757,-500.0,0.00015733,2]
[401599741,1768313444766,-500.0,0.00015733,2]
[401599743,1768313444776,-327.27133552,0.00015733,2]
[401599745,1768313444787,-172.72866448,0.00015733,2]
[401599747,1768313444796,-423.43575816,0.00015733,2]
[401599749,1768313444807,-76.56424184,0.00015733,2]
[401599751,1768313444816,-223.43575816,0.00015733,2]
[401599754,1768313444833,-276.56424184,0.00015733,2]
[401599755,1768313444851,-326.26658427,0.00015733,2]
[401599757,1768313444860,-500.0,0.00015733,2]
[401599759,1768313444869,-500.0,0.00015733,2]
[401599761,1768313444879,-500.0,0.00015733,2]
[401599763,1768313444888,-500.0,0.00015733,2]
[401599765,1768313444897,-500.0,0.00015733,2]
[401599767,1768313444907,-500.0,0.00015733,2]
[401599769,1768313444915,-335.5986352,0.00015733,2]
[401599860,1768313445791,-164.4013648,0.00015733,2]
[401599862,1768313445800,-500.0,0.00015733,2]
[401599864,1768313445809,-464.34755236,0.00015733,2]
[401600898,1768313456260,167.17,7.011e-05,2]
[401600944,1768313456747,200.61,7.292e-05,2]
[401600988,1768313457242,234.04,7.572e-05,2]
[401601025,1768313457734,267.47,7.853e-05,2]
[401601067,1768313458237,300.91,8.133e-05,2]
[401601108,1768313458738,334.34,8.413e-05,2]
[401606049,1768314003073,151.27,5e-05,2]
[401606050,1768314003459,151.27,9.1e-05,2]
[401606051,1768314208510,531.2787334,0.00030136,120]
[401606052,1768314209238,-245.2023864,0.00013273,2]
[401606053,1768314209259,-218.00861682,0.00013273,2]
[401606054,1768314209278,-608.0,0.00013273,2]
[401606055,1768314209298,-273.66790269,0.00013809,2]
[401606056,1768314209317,-300.0,0.00014999,2]
[401606057,1768314209337,-300.0,0.00014999,2]
[401606058,1768314209356,-1000.0,0.00015,2]
[401606059,1768314209377,-5000.0,0.00015,2]
[401606060,1768314209396,-50000.0,0.00015359,2]
[401606061,1768314209416,-3276.8415351,0.00015359,2]
[401606062,1768314209434,-1200.0,0.00015457,2]
[401606063,1768314209451,-300.0,0.00015458,2]
[401606064,1768314209471,-300.0,0.00015458,2]
[401606065,1768314209490,-183.382,0.00015458,2]
[401606066,1768314209509,-764.0,0.00015459,2]
[401606067,1768314209527,-500.0,0.00015459,2]
[401606068,1768314209542,-500.0,0.00015459,2]
[401606069,1768314209558,-500.0,0.00015459,2]
[401606070,1768314209575,-599.0,0.00015459,2]
[401606071,1768314209591,-500.0,0.00015459,2]
[401606072,1768314209607,-500.0,0.00015459,2]
[401606073,1768314209623,-159.5717999,0.00015459,2]
[401606074,1768314209638,-500.0,0.00015459,2]
[401606075,1768314209658,-500.0,0.00015459,2]
[401606076,1768314209677,-500.0,0.00015459,2]
[401606077,1768314209697,-500.0,0.00015459,2]
[401606078,1768314209717,-500.0,0.00015459,2]
[401606079,1768314209737,-737.4456429,0.00015539,2]
[401606080,1768314209757,-1722.2043065,0.00015539,2]
[401606081,1768314209776,-764.0,0.00015596,2]
[401606082,1768314209795,-500.0,0.00015596,2]
[401606083,1768314209814,-500.0,0.00015596,2]
[401606084,1768314209833,-500.0,0.00015596,2]
[401606085,1768314209852,-599.0,0.00015596,2]
[401606086,1768314209874,-500.0,0.00015596,2]
[401606087,1768314209894,-500.0,0.00015596,2]
[401606088,1768314209914,-500.0,0.00015596,2]
[401606089,1768314209933,-251.72783748,0.00015596,2]
[401606090,1768314209953,-500.0,0.00015596,2]
[401606091,1768314209973,-500.0,0.00015596,2]
[401606092,1768314209992,-500.0,0.00015596,2]
[401606093,1768314210012,-500.0,0.00015596,2]
[401606094,1768314210032,-155.34671778,0.00015596,2]
[401606095,1768314210054,-910.78,0.00015724,3]
[401606096,1768314210074,-455.39,0.00015724,3]
[401606097,1768314210097,-227.69,0.00015724,3]
[401606098,1768314210118,-683.11,0.00015724,3]
[401606099,1768314210139,-5000.0,0.00015732,2]
[401606100,1768314210160,-500.0,0.00015733,2]
[401606101,1768314210180,-607.27913093,0.00015733,2]
[401606102,1768314210202,-500.0,0.00015733,2]
[401606103,1768314210222,-500.0,0.00015733,2]
[401606104,1768314210242,-500.0,0.00015733,2]
[401606105,1768314210265,-500.0,0.00015733,2]
[401606106,1768314210286,-499.99999999,0.00015733,2]
[401606107,1768314210307,-764.0,0.00015733,2]
[401606108,1768314210329,-472.84154901,0.00015733,2]
[401606109,1768314210349,-500.0,0.00015733,2]
[401606110,1768314210369,-500.0,0.00015733,2]
[401606111,1768314210390,-599.0,0.00015733,2]
[401606112,1768314210412,-500.0,0.00015733,2]
[401606113,1768314210432,-500.0,0.00015733,2]
[401606114,1768314210452,-347.9974016,0.00015733,2]
[401606115,1768314210473,-204.76285516,0.00015733,2]
[401606116,1768314210494,-500.0,0.00015733,2]
[401606117,1768314210514,-500.0,0.00015733,2]
[401606118,1768314210534,-500.0,0.00015733,2]
[401606119,1768314210554,-295.87556456,0.00015733,2]
[401606120,1768314210579,-419973.87475318,0.00015734,2]
[401606129,1768314518406,5000.0,0.0003,120]
[401606130,1768314518777,613.0104884,0.00030137,120]
[401606131,1768314519896,3293.21134449,0.0001,2]
[401606132,1768314539791,166.34,8.753e-05,2]
[401606133,1768314540268,190.1,9.077e-05,2]
[401606134,1768314540743,213.86,9.401e-05,2]
[401606135,1768314541242,237.62,9.726e-05,2]
[401606136,1768314556919,500.0,0.00013273,2]
[401606170,1768314631798,-500.0,0.00013699,2]
[401606171,1768314631808,-268.19454463,0.00013699,2]
[401606172,1768314631817,-278.13877826,0.00013699,2]
[401606179,1768314637871,-336.86122174,0.00013699,2]
[401606180,1768314637890,-855.15159414,0.00013821,2]
[401606182,1768314637900,-500.0,0.00014247,2]
[401606184,1768314637911,-300.0,0.00014451,2]
[401606185,1768314637922,-300.0,0.00014451,2]
[401606187,1768314637933,-243.0,0.00014451,2]
[401606189,1768314637946,-319.0,0.00014451,2]
[401606190,1768314637957,-2201.84101692,0.00014452,2]
[401606200,1768314638538,-2640.04257523,0.00014452,2]
[401606201,1768314638549,-5954.31640785,0.00014452,2]
[401606202,1768314638559,-1000.0,0.00015,2]
[401606203,1768314638568,-6047.0,0.00015222,2]
[401606204,1768314638578,-531.28,0.00015349,3]
[401606205,1768314638588,-265.64,0.00015349,3]
[401606206,1768314638599,-796.96,0.00015349,3]
[401606207,1768314638609,-20331.29568114,0.00015358,2]
[401606208,1768314638619,-336.42292717,0.00015358,2]
[401606209,1768314638628,-500.0,0.00015358,2]
[401606210,1768314638638,-500.0,0.00015358,2]
[401606211,1768314638650,-500.0,0.00015358,2]
[401606212,1768314638664,-500.0,0.00015358,2]
[401606213,1768314638676,-500.0,0.00015358,2]
[401606214,1768314638688,-500.0,0.00015358,2]
[401606215,1768314638701,-500.0,0.00015358,2]
[401606216,1768314638713,-500.0,0.00015358,2]
[401606217,1768314638725,-200.16277276,0.00015358,2]
[401606218,1768314638735,-500.0,0.00015358,2]
[401606219,1768314638746,-500.0,0.00015358,2]
[401606220,1768314638756,-500.0,0.00015358,2]
[401606221,1768314638769,-500.0,0.00015358,2]
[401606222,1768314638780,-500.0,0.00015358,2]
[401606223,1768314638792,-500.0,0.00015358,2]
[401606224,1768314638803,-460.36221465,0.00015358,2]
[401606225,1768314638814,-500.0,0.00015358,2]
[401606226,1768314638826,-400.80879233,0.00015358,2]
[401606227,1768314638837,-500.0,0.00015358,2]
[401606228,1768314638850,-500.0,0.00015358,2]
[401606229,1768314638863,-500.0,0.00015358,2]
[401606230,1768314638875,-500.0,0.00015358,2]
[401606231,1768314638886,-500.0,0.00015358,2]
[401606232,1768314638897,-500.0,0.00015358,2]
[401606233,1768314638909,-500.0,0.00015358,2]
[401606234,1768314638921,-294.38786363,0.00015358,2]
[401606235,1768314638933,-500.0,0.00015358,2]
[401606236,1768314638946,-500.0,0.00015358,2]
[401606237,1768314638959,-500.0,0.00015358,2]
[401606238,1768314638971,-500.0,0.00015358,2]
[401606239,1768314638985,-500.0,0.00015358,2]
[401606240,1768314638997,-500.0,0.00015358,2]
[401606241,1768314639010,-219.18111726,0.00015358,2]
[401606242,1768314639024,-500.0,0.00015358,2]
[401606243,1768314639035,-500.0,0.00015358,2]
[401606244,1768314639047,-500.0,0.00015358,2]
[401606245,1768314639058,-500.0,0.00015358,2]
[401606246,1768314639070,-500.0,0.00015358,2]
[401606247,1768314639082,-500.0,0.00015358,2]
[401606248,1768314639094,-500.0,0.00015358,2]
[401606249,1768314639106,-500.0,0.00015358,2]
[401606250,1768314639117,-500.0,0.00015358,2]
[401606251,1768314639127,-500.0,0.00015358,2]
[401606252,1768314639138,-500.0,0.00015358,2]
[401606253,1768314639149,-500.0,0.00015358,2]
[401606254,1768314639159,-500.0,0.00015358,2]
[401606255,1768314639169,-500.0,0.00015358,2]
[401606256,1768314639179,-500.0,0.00015358,2]
[401606257,1768314639190,-500.0,0.00015358,2]
[401606258,1768314639204,-500.0,0.00015358,2]
[401606259,1768314639215,-500.0,0.00015358,2]
[401606260,1768314639225,-500.0,0.00015358,2]
[401606261,1768314639237,-500.0,0.00015358,2]
[401606262,1768314639248,-500.0,0.00015358,2]
[401606263,1768314639259,-500.0,0.00015358,2]
[401606264,1768314639270,-300.0,0.00015358,2]
[401606265,1768314639282,-20776.33811712,0.00015359,2]
[401606294,1768314640094,-1257.82439776,0.00015359,2]
[401606296,1768314640107,-1131.63761844,0.00015359,2]
[401606299,1768314640119,-900.0,0.00015359,2]
[401606816,1768314645908,-1411.95357189,0.00015359,2]
[401606818,1768314645922,-1437.1938843,0.00015359,2]
[401606836,1768314646095,-272.83182917,0.00015359,2]
[401611580,1768314751951,-182.261,0.00015052,2]
[401611581,1768314753980,300.0,0.00014535,2]
[401611583,1768314853058,2207.9235642,0.00014586,2]
[401611592,1768315014035,405.10169357,0.0003,120]
[401611593,1768315083885,485.87,9.99e-05,2]
[401611594,1768315084189,485.87,9.99e-05,2]
[401611596,1768315137018,1034.225512,0.00010959,2]
[401611598,1768315205320,637.0,0.00015068,2]
[401611599,1768315210139,156.85127801,0.0001496,2]
[401611600,1768315230620,-169.07956,0.00015068,2]
[401611601,1768315230649,-267.85562046,0.00015213,2]
[401611602,1768315230679,-2867.23634316,0.00015323,2]
[401611603,1768315230707,-265.64,0.00015349,3]
[401611604,1768315230736,-796.92,0.00015349,3]
[401611605,1768315236609,-1055.14525406,0.00015259,2]
[401611606,1768315239622,-10000.01,0.00015259,2]
[401611607,1768315270717,208.79,8.639e-05,2]
[401611608,1768315271120,417.58,9.05e-05,2]
[401611609,1768315271525,626.37,9.461e-05,2]
[401611610,1768315271920,835.16,9.873e-05,2]
[401611611,1768315272508,1043.94,0.00010284,2]
[401611612,1768315272913,1252.73,0.00010696,2]
[401611613,1768315273852,1461.52,0.00011107,2]
[401611614,1768315274284,1670.31,0.00011518,2]
[401611615,1768315274707,1879.1,0.0001193,2]
[401611616,1768315275137,604.51,0.00012341,2]
[401611617,1768315275167,1483.38,0.00012341,2]
[401611618,1768315303539,182.262,0.00014954,2]
[401611619,1768315340916,1000.0,0.00014525,2]
[401611620,1768315346974,254.2,6.385e-05,2]
[401611621,1768315347391,381.3,6.675e-05,2]
[401611622,1768315347905,508.4,6.965e-05,2]
[401611623,1768315348810,635.5,7.255e-05,2]
[401611624,1768315349244,762.61,7.546e-05,2]
[401611626,1768315376631,889.71,7.836e-05,2]
[401611627,1768315377120,1016.81,8.126e-05,2]
[401611628,1768315377543,1143.91,8.416e-05,2]
[401611629,1768315377945,1271.01,8.706e-05,2]
[401611631,1768315433794,217.706092,0.00014554,2]
[401611632,1768315434021,217.706092,0.00014554,120]
[401611634,1768315444315,827.0,0.00015,2]
[401611635,1768315450802,205.93,6.397e-05,2]
[401611636,1768315451291,308.9,6.688e-05,2]
[401611637,1768315451714,411.87,6.979e-05,2]
[401611638,1768315452139,514.83,7.27e-05,2]
[401611639,1768315452547,617.8,7.561e-05,2]
[401611640,1768315452958,720.77,7.851e-05,2]
[401611641,1768315453359,823.73,8.142e-05,2]
[401611642,1768315453764,926.7,8.433e-05,2]
[401611643,1768315454174,103.333908,8.724e-05,2]
[401611644,1768315454197,926.336092,8.724e-05,2]
[401611648,1768315533083,161.0,7.16e-05,2]
[401611649,1768315533478,193.2,7.447e-05,2]
[401611650,1768315533886,225.4,7.733e-05,2]
[401611651,1768315534297,257.6,8.02e-05,2]
[401611652,1768315534849,289.8,8.306e-05,2]
[401611653,1768315535282,322.0,8.592e-05,2]
[401611742,1768315564565,498.89648662,0.00030136,120]
[401611743,1768315564842,294.54211258,0.00015,2]
[401611755,1768315683594,1000.0,0.00015,2]
[401611758,1768315733461,730.12530824,0.0001447,2]
[401611762,1768315803983,1000.0,0.00015,2]
[401611763,1768315806111,156.84,5e-05,2]
[401611764,1768315807044,156.84,5.4e-05,2]
[401611765,1768315807768,156.84,5.9e-05,2]
[401611766,1768315808447,156.84,6.3e-05,2]
[401611767,1768315809431,156.84,6.7e-05,2]